bitfinex-derivatives/quotes_BTCF0:USTF0_20251220
["timestamp","ask_amount","ask_price","bid_price","bid_amount"]
[1766273503403,0.02832,88355.0,88337.0,0.0395653]
[1766273503605,0.02448066,88354.0,88337.0,0.0395653]
[1766273503903,0.02448066,88353.0,88337.0,0.0395653]
[1766273504106,0.02448066,88352.0,88337.0,0.0395653]
[1766273504299,0.02448066,88351.0,88337.0,0.0395653]
[1766273504602,0.02832,88355.0,88337.0,0.0395653]
[1766273504804,0.024481,88354.0,88337.0,0.0395653]
[1766273505003,0.024481,88353.0,88337.0,0.0395653]
[1766273505204,0.024481,88352.0,88337.0,0.0395653]
[1766273505405,0.024481,88351.0,88337.0,0.0395653]
[1766273505604,0.02832,88355.0,88337.0,0.0395653]
[1766273505805,0.02448097,88354.0,88337.0,0.0395653]
[1766273506005,0.02448097,88353.0,88337.0,0.0395653]
[1766273506304,0.02448097,88352.0,88337.0,0.0395653]
[1766273506604,0.02448097,88351.0,88337.0,0.0395653]
[1766273506806,0.02832,88355.0,88337.0,0.0395653]
[1766273506995,0.02448097,88354.0,88337.0,0.0395653]
[1766273507196,0.02448097,88353.0,88337.0,0.0395653]
[1766273507405,0.02448097,88352.0,88337.0,0.0395653]
[1766273507707,0.02448097,88351.0,88337.0,0.0395653]
[1766273507906,0.02832,88355.0,88337.0,0.0395653]
[1766273508208,0.02448102,88354.0,88337.0,0.0395653]
[1766273508407,0.02448102,88353.0,88337.0,0.0395653]
[1766273508606,0.02448102,88352.0,88337.0,0.0395653]
[1766273508807,0.02448102,88351.0,88337.0,0.0395653]
[1766273509007,0.02832,88355.0,88337.0,0.0395653]
[1766273509207,0.024481,88354.0,88337.0,0.0395653]
[1766273509409,0.024481,88353.0,88337.0,0.0395653]
[1766273509609,0.024481,88352.0,88337.0,0.0395653]
[1766273509810,0.024481,88351.0,88337.0,0.0395653]
[1766273510000,0.02832,88355.0,88337.0,0.0395653]
[1766273510201,0.02448099,88354.0,88337.0,0.0395653]
[1766273510509,0.02448099,88353.0,88340.0,0.0113249]
[1766273510706,0.02448099,88352.0,88340.0,0.0113249]
[1766273510907,0.02832,88355.0,88340.0,0.0113249]
[1766273511108,0.02448083,88354.0,88340.0,0.0113249]
[1766273511308,0.02448083,88353.0,88340.0,0.0113249]
[1766273511508,0.02448083,88352.0,88340.0,0.0113249]
[1766273511806,0.02832,88355.0,88344.0,0.0113244]
[1766273512011,0.02448052,88354.0,88344.0,0.0113244]
[1766273512209,0.02448052,88353.0,88344.0,0.0113244]
[1766273512412,0.02832,88355.0,88344.0,0.0113244]
[1766273512610,0.02448028,88354.0,88344.0,0.0113244]
[1766273512814,0.02448028,88353.0,88344.0,0.0113244]
[1766273513113,0.02832,88355.0,88344.0,0.0113244]
[1766273513305,0.02448028,88354.0,88344.0,0.0113244]
[1766273513505,8e-08,88353.0,88344.0,0.0113244]
[1766273513705,0.02832,88355.0,88344.0,0.0113244]
[1766273515410,0.00016982,88356.0,88344.0,0.0113244]
[1766273518117,0.00016982,88356.0,88340.0,0.0113249]
[1766273519733,0.00016982,88356.0,88337.0,0.02824]
[1766273521120,0.00016982,88356.0,88337.0,0.0395653]
[1766273521318,0.011323,88355.0,88337.0,0.0395653]
[1766273522114,0.00016982,88356.0,88337.0,0.02824]
[1766273522314,0.00016982,88356.0,88338.0,0.0113251]
[1766273522919,0.01149272,88356.0,88336.0,0.00016982]
[1766273523115,0.01149272,88356.0,88339.0,0.02832]
[1766273523418,0.17555086,88350.0,88339.0,0.02832]
[1766273523818,0.17555086,88350.0,88339.0,0.02828]
[1766273524414,0.01149272,88356.0,88339.0,0.02828]
[1766273524812,0.01149272,88356.0,88338.0,0.01544]
[1766273525516,0.02432007,88355.0,88338.0,0.01544]
[1766273525818,0.02432007,88354.0,88338.0,0.01544]
[1766273526018,0.02432007,88353.0,88338.0,0.01544]
[1766273526320,0.01149272,88356.0,88338.0,0.01544]
[1766273526510,0.0113232,88354.0,88338.0,0.01544]
[1766273526714,0.02431918,88353.0,88338.0,0.01544]
[1766273526920,0.0113232,88354.0,88338.0,0.01544]
[1766273527121,0.0243191,88353.0,88338.0,0.01544]
[1766273527323,0.0113232,88354.0,88338.0,0.01544]
[1766273527613,0.0243189,88353.0,88338.0,0.01544]
[1766273527827,0.0113238,88349.0,88336.0,0.00016982]
[1766273528015,0.17555086,88350.0,88337.0,0.00924]
[1766273532325,0.17555086,88350.0,88336.0,0.00016982]
[1766273541648,0.0396432,88354.0,88336.0,0.00016982]
[1766273541854,0.17555086,88350.0,88336.0,0.00016982]
[1766273543349,0.20387086,88350.0,88336.0,0.00016982]
[1766273551055,0.02431993,88349.0,88336.0,0.00016982]
[1766273551253,0.20387086,88350.0,88336.0,0.00016982]
[1766273551452,0.02431988,88349.0,88336.0,0.00016982]
[1766273551654,0.20387086,88350.0,88336.0,0.00016982]
[1766273551955,0.02431988,88349.0,88336.0,0.00016982]
[1766273552152,0.20387086,88350.0,88336.0,0.00016982]
[1766273552354,0.02432107,88349.0,88336.0,0.00016982]
[1766273552555,0.20387086,88350.0,88336.0,0.00016982]
[1766273552749,0.02432107,88349.0,88336.0,0.00016982]
[1766273552949,0.20387086,88350.0,88336.0,0.00016982]
[1766273553149,0.02432107,88349.0,88336.0,0.00016982]
[1766273553361,0.20387086,88350.0,88336.0,0.00016982]
[1766273553563,0.03564573,88349.0,88331.0,0.01312]
[1766273553762,0.0113238,88349.0,88331.0,0.01312]
[1766273553964,0.02479473,88348.0,88331.0,0.01312]
[1766273554153,0.20387086,88350.0,88331.0,0.01312]
[1766273554353,0.03611954,88349.0,88331.0,0.01312]
[1766273554555,0.02479574,88348.0,88331.0,0.01312]
[1766273554756,0.0113238,88349.0,88331.0,0.01328982]
[1766273555054,0.0247958,88348.0,88331.0,0.01328982]
[1766273555254,0.0113238,88349.0,88331.0,0.01328982]
[1766273555460,0.02479571,88348.0,88331.0,0.01328982]
[1766273555663,0.0113238,88349.0,88331.0,0.01328982]
[1766273555961,0.02479571,88348.0,88331.0,0.01328982]
[1766273556151,0.0113238,88349.0,88331.0,0.01328982]
[1766273556359,0.02479568,88348.0,88331.0,0.01328982]
[1766273556559,0.0113238,88349.0,88331.0,0.01328982]
[1766273556761,0.02479568,88348.0,88331.0,0.01328982]
[1766273556960,0.0113238,88349.0,88331.0,0.01328982]
[1766273557161,0.02479568,88348.0,88331.0,0.01328982]
[1766273557362,0.0113238,88349.0,88331.0,0.01328982]
[1766273557555,0.02479602,88348.0,88331.0,0.01328982]
[1766273557754,0.0113238,88349.0,88331.0,0.01328982]
[1766273557963,0.02479602,88348.0,88331.0,0.01328982]
[1766273558163,0.0113238,88349.0,88331.0,0.01328982]
[1766273558463,0.02479626,88348.0,88331.0,0.01328982]
[1766273558663,0.0113238,88349.0,88331.0,0.01328982]
[1766273558865,0.02479626,88348.0,88331.0,0.01328982]
[1766273559066,0.0113238,88349.0,88331.0,0.01328982]
[1766273559366,0.02479626,88348.0,88331.0,0.01328982]
[1766273559664,0.0113238,88349.0,88331.0,0.01328982]
[1766273559868,0.20391664,88350.0,88323.0,0.06117648]
[1766273560162,0.17559664,88340.0,88324.0,0.01896]
[1766273560465,0.17559664,88340.0,88315.0,0.06117648]
[1766273560466,0.17559664,88340.0,88325.0,0.01704]
[1766273561265,0.17559664,88340.0,88324.0,0.00016982]
[1766273561266,0.17559664,88340.0,88326.0,0.0098]
[1766273561467,0.17559664,88340.0,88324.0,0.00016982]
[1766273561765,0.17559664,88340.0,88325.0,0.00916]
[1766273561966,0.17559664,88340.0,88324.0,0.00016982]
[1766273562171,0.17559664,88340.0,88325.0,0.00732]
[1766273562363,0.17559664,88340.0,88326.0,0.0064]
[1766273562570,0.17559664,88340.0,88327.0,0.00464]
[1766273562769,0.17559664,88340.0,88324.0,0.00016982]
[1766273562972,0.17559664,88340.0,88325.0,0.00392]
[1766273563272,0.17559664,88340.0,88324.0,0.00016982]
[1766273563465,0.17561989,88340.0,88325.0,0.0066]
[1766273563665,0.17561989,88340.0,88326.0,0.00604]
[1766273569276,0.17561989,88340.0,88326.0,0.0173667]
[1766273570372,0.17561989,88340.0,88330.0,0.0113261]
[1766273570567,0.00016982,88341.0,88330.0,0.17561989]
[1766273570767,0.00012982,88341.0,88330.0,0.17561989]
[1766273572178,0.00012982,88341.0,88332.0,0.0113259]
[1766273577582,0.00012982,88341.0,88328.0,0.0113264]
[1766273577882,0.17561989,88340.0,88326.0,0.00604]
[1766273579188,0.17561989,88340.0,88327.0,0.0113266]
[1766273580290,0.17561989,88340.0,88326.0,0.00604]
[1766273583890,0.17561989,88340.0,88326.0,0.0173667]
[1766273584100,0.00012982,88341.0,88326.0,0.0173667]
[1766273584394,0.00012982,88341.0,88330.0,0.0113262]
[1766273585489,0.00012982,88341.0,88326.0,0.00604]
[1766273586189,0.00012982,88341.0,88332.0,0.0113259]
[1766273592198,0.00012982,88341.0,88328.0,0.0113264]
[1766273593699,0.17561989,88340.0,88328.0,0.0113264]
[1766273594798,0.17559875,88340.0,88328.0,0.0113264]
[1766273597299,0.00012982,88341.0,88328.0,0.0113264]
[1766273597500,0.00012982,88341.0,88326.0,0.00604]
[1766273599207,0.00012982,88341.0,88330.0,0.0113262]
[1766273599795,0.17559875,88340.0,88331.0,0.02832]
[1766273606514,0.17559875,88340.0,88326.0,0.0113266]
[1766273606728,0.17559875,88340.0,88331.0,0.02832]
[1766273612531,0.17559875,88340.0,88324.0,0.00016982]
[1766273612731,0.17559875,88340.0,88325.0,0.02832]
[1766273613730,0.17559875,88340.0,88324.0,0.00016982]
[1766273614032,0.00012982,88341.0,88326.0,0.02832]
[1766273614234,0.17559875,88340.0,88326.0,0.02832]
[1766273622545,0.17559875,88340.0,88325.0,0.0113269]
[1766273622747,0.17559875,88340.0,88326.0,0.02832]
[1766273623043,0.17559875,88340.0,88327.0,0.0113266]
[1766273623434,0.00012982,88341.0,88327.0,0.0113266]
[1766273626948,0.00012982,88341.0,88326.0,0.02832]
[1766273627145,0.00012982,88341.0,88330.0,0.0113262]
[1766273628351,0.00012982,88341.0,88333.0,0.0113258]
[1766273632056,0.00012982,88341.0,88329.0,0.0113263]
[1766273633947,0.00012982,88341.0,88326.0,0.02832]
[1766273633948,0.00012982,88341.0,88332.0,0.011326]
[1766273634356,0.00012982,88341.0,88328.0,0.0113264]
[1766273637857,0.00012982,88341.0,88326.0,0.02832]
[1766273638054,0.17558844,88340.0,88324.0,0.00016982]
[1766273638358,0.0113254,88337.0,88325.0,0.02832]
[1766273639261,0.17558844,88340.0,88325.0,0.02832]
[1766273639849,0.0113251,88339.0,88325.0,0.02832]
[1766273643164,0.17558844,88340.0,88325.0,0.02832]
[1766273644260,0.17558844,88340.0,88324.0,0.00016982]
[1766273644464,0.00012982,88341.0,88325.0,0.02316]
[1766273655864,0.01145472,88341.0,88325.0,0.02316]
[1766273663276,0.0113252,88338.0,88325.0,0.02316]
[1766273663664,0.0113252,88338.0,88324.0,0.00016982]
[1766273663961,0.0113252,88338.0,88325.0,0.02228]
[1766273664173,0.00012982,88341.0,88325.0,0.02228]
[1766273667778,0.17562301,88340.0,88325.0,0.02228]
[1766273670470,0.011325,88340.0,88325.0,0.02228]
[1766273674377,0.00012982,88341.0,88325.0,0.02228]
[1766273676681,0.17562301,88340.0,88325.0,0.02228]
[1766273681283,0.0113251,88339.0,88325.0,0.02228]
[1766273685287,0.17562709,88340.0,88325.0,0.02228]
[1766273691190,0.17562709,88340.0,88326.0,0.02832]
[1766273698998,0.00012982,88341.0,88326.0,0.02832]
[1766273699188,0.17562709,88340.0,88326.0,0.02832]
[1766273702205,0.00012982,88341.0,88326.0,0.0396466]
[1766273702401,0.17562709,88340.0,88326.0,0.0396466]
[1766273703605,0.17562709,88340.0,88330.0,0.0113262]
[1766273703903,0.00012982,88341.0,88326.0,0.0396467]
[1766273704402,0.17560408,88340.0,88326.0,0.0396467]
[1766273705106,0.00012982,88341.0,88326.0,0.0396467]
[1766273705407,0.17560408,88340.0,88326.0,0.0396467]
[1766273706090,0.00012982,88341.0,88326.0,0.0396467]
[1766273706395,0.17560408,88340.0,88326.0,0.0396467]
[1766273707099,0.00012982,88341.0,88326.0,0.0396467]
[1766273707304,0.17560408,88340.0,88327.0,0.02832]
[1766273708107,0.00012982,88341.0,88327.0,0.02832]
[1766273708304,0.17560408,88340.0,88327.0,0.02832]
[1766273711105,0.00012982,88341.0,88327.0,0.02832]
[1766273711306,0.17560408,88340.0,88327.0,0.02832]
[1766273712110,0.00012982,88341.0,88327.0,0.02832]
[1766273712410,0.17560408,88340.0,88327.0,0.02832]
[1766273712909,0.17560408,88340.0,88328.0,0.0113264]
[1766273713109,0.00012982,88341.0,88328.0,0.0113264]
[1766273713313,0.00852,88350.0,88331.0,0.011326]
[1766273713606,0.06118091,88368.0,88344.0,0.0113244]
[1766273713907,1.4557597,88381.0,88350.0,0.17560408]
[1766273713908,0.17560408,88370.0,88350.0,0.17560408]
[1766273714205,0.0113213,88369.0,88347.0,0.011324]
[1766273714412,0.0113213,88369.0,88345.0,0.02832]
[1766273714413,0.00016982,88367.0,88350.0,0.17560408]
[1766273714614,0.00016982,88367.0,88349.0,0.00016982]
[1766273715314,0.0113216,88366.0,88349.0,0.00016982]
[1766273715705,0.17560408,88360.0,88349.0,0.00016982]
[1766273715910,0.0113225,88359.0,88349.0,0.00016982]
[1766273716108,0.0113234,88353.0,88350.0,0.02832]
[1766273716411,0.0113234,88353.0,88330.0,0.17560408]
[1766273716617,0.0113234,88353.0,88329.0,0.0113263]
[1766273716618,0.0113234,88353.0,88340.0,0.17560408]
[1766273716815,0.0113234,88353.0,88341.0,0.02832]
[1766273717314,0.0113228,88357.0,88341.0,0.02832]
[1766273724728,0.17560408,88360.0,88341.0,0.02832]
[1766273725128,0.17560408,88360.0,88340.0,0.1757739]
[1766273725322,0.17560408,88360.0,88341.0,0.02832]
[1766273727828,0.0113226,88359.0,88341.0,0.02832]
[1766273740640,0.011323,88356.0,88340.0,0.00016982]
[1766273740937,0.011323,88356.0,88342.0,0.02832]
[1766273743741,0.011323,88356.0,88343.0,0.02312]
[1766273743947,0.18687644,88360.0,88343.0,0.02312]
[1766273744134,0.0241875,88359.0,88343.0,0.02312]
[1766273744335,0.0241875,88358.0,88343.0,0.02312]
[1766273744539,0.0241875,88357.0,88343.0,0.02312]
[1766273744843,0.18687644,88360.0,88343.0,0.02312]
[1766273745043,0.02418924,88359.0,88343.0,0.02312]
[1766273745232,0.02418924,88358.0,88343.0,0.02312]
[1766273745541,0.02418924,88357.0,88343.0,0.02312]
[1766273745745,0.18687756,88360.0,88343.0,0.02312]
[1766273745943,0.02419233,88359.0,88343.0,0.02312]
[1766273746141,0.02419233,88358.0,88343.0,0.02312]
[1766273746441,0.02419233,88357.0,88343.0,0.02312]
[1766273746641,0.18687756,88360.0,88343.0,0.02312]
[1766273746841,0.02419218,88359.0,88343.0,0.02312]
[1766273747142,0.02419218,88358.0,88343.0,0.02312]
[1766273747342,0.02419218,88357.0,88343.0,0.02312]
[1766273747545,0.18687756,88360.0,88343.0,0.02312]
[1766273747843,0.02419206,88359.0,88343.0,0.02312]
[1766273748039,0.02419206,88358.0,88343.0,0.02312]
[1766273748246,0.02419206,88357.0,88343.0,0.02312]
[1766273748444,0.18687756,88360.0,88343.0,0.02312]
[1766273748646,0.02419194,88359.0,88343.0,0.02312]
[1766273748846,0.02419194,88358.0,88343.0,0.02312]
[1766273749156,0.02419194,88357.0,88343.0,0.02312]
[1766273749351,0.18687756,88360.0,88343.0,0.02312]
[1766273749647,0.02419183,88359.0,88343.0,0.02312]
[1766273749943,0.02419183,88358.0,88343.0,0.02312]
[1766273750147,0.18687756,88360.0,88343.0,0.02312]
[1766273750148,0.02419183,88357.0,88343.0,0.02312]
[1766273750444,0.18687756,88360.0,88343.0,0.02312]
[1766273750744,0.02419173,88359.0,88343.0,0.02312]
[1766273750946,0.02419173,88358.0,88343.0,0.02312]
[1766273751144,0.02419173,88357.0,88343.0,0.02312]
[1766273751444,0.18687756,88360.0,88343.0,0.02312]
[1766273751650,0.02419162,88359.0,88343.0,0.02312]
[1766273751844,0.02419162,88358.0,88343.0,0.02312]
[1766273752143,0.02419162,88357.0,88343.0,0.02312]
[1766273752346,0.0113228,88357.0,88343.0,0.02312]
[1766273756446,0.17555506,88360.0,88343.0,0.02312]
[1766273756748,0.02419135,88359.0,88343.0,0.02312]
[1766273757044,0.02419135,88358.0,88343.0,0.02312]
[1766273757245,0.02419135,88357.0,88343.0,0.02312]
[1766273757447,0.17555506,88360.0,88343.0,0.02312]
[1766273757643,0.02419137,88359.0,88343.0,0.02312]
[1766273757835,0.02419137,88358.0,88343.0,0.02312]
[1766273758035,0.02419114,88357.0,88343.0,0.02312]
[1766273758241,0.0113225,88359.0,88343.0,0.02312]
[1766273758444,0.02419076,88358.0,88343.0,0.02312]
[1766273758631,0.0113225,88359.0,88343.0,0.02312]
[1766273758839,0.02419076,88358.0,88343.0,0.02312]
[1766273759148,0.011322,88363.0,88343.0,0.02312]
[1766273759341,0.02419022,88362.0,88343.0,0.02312]
[1766273759647,0.02419022,88361.0,88344.0,0.0113243]
[1766273759847,0.00704,88365.0,88344.0,0.0113243]
[1766273759848,0.02419022,88360.0,88344.0,0.0113243]
[1766273760144,0.0183618,88365.0,88343.0,0.0344444]
[1766273765444,0.0183618,88365.0,88346.0,0.0113241]
[1766273766456,0.0183618,88365.0,88343.0,0.02312]
[1766273770651,0.0183618,88365.0,88344.0,0.0113243]
[1766273775661,0.0113222,88362.0,88343.0,0.06384845]
[1766273779168,0.00704,88365.0,88343.0,0.06384845]
[1766273779361,0.00704,88365.0,88343.0,0.02312]
[1766273779362,0.0113228,88357.0,88343.0,0.02312]
[1766273784265,0.17551728,88360.0,88343.0,0.02312]
[1766273786474,0.0113225,88359.0,88343.0,0.02312]
[1766273788571,0.0113221,88363.0,88343.0,0.02312]
[1766273788772,0.0113224,88360.0,88343.0,0.02312]
[1766273789669,0.011322,88364.0,88343.0,0.02312]
[1766273790171,0.0113223,88361.0,88343.0,0.02312]
[1766273792473,0.00704,88365.0,88343.0,0.02312]
[1766273793074,0.0113219,88364.0,88343.0,0.02312]
[1766273793569,0.0113223,88361.0,88343.0,0.02312]
[1766273798177,0.0183618,88365.0,88343.0,0.02312]
[1766273800279,0.0113221,88362.0,88343.0,0.02312]
[1766273800577,0.00704,88365.0,88343.0,0.0344445]
[1766273801464,0.00704,88365.0,88343.0,0.0113245]
[1766273801688,0.00704,88365.0,88344.0,0.02832]
[1766273802077,0.011322,88364.0,88344.0,0.02832]
[1766273802678,0.0113223,88361.0,88344.0,0.02832]
[1766273803977,0.17551728,88360.0,88344.0,0.02832]
[1766273806174,0.17551728,88360.0,88342.0,0.04072845]
[1766273806376,0.17551728,88354.0,88340.0,0.00016982]
[1766273806579,0.17551728,88350.0,88340.0,0.00016982]
[1766273806776,0.0113233,88353.0,88340.0,0.00016982]
[1766273807581,0.17558738,88350.0,88340.0,0.00016982]
[1766273813182,0.17558927,88350.0,88340.0,0.00016982]
[1766273829809,0.02832,88352.0,88340.0,0.00016982]
[1766273831112,0.17558927,88350.0,88340.0,0.00016982]
[1766273839020,0.17558927,88350.0,88341.0,0.0113248]
[1766273839618,0.02832,88352.0,88341.0,0.0113248]
[1766273839922,0.02832,88357.0,88344.0,0.0113244]
[1766273840124,0.02456942,88356.0,88344.0,0.0113244]
[1766273840423,0.02456942,88355.0,88344.0,0.0113244]
[1766273840618,0.02456942,88354.0,88340.0,0.01149472]
[1766273840922,0.02456942,88353.0,88340.0,0.01149472]
[1766273841122,0.02832,88357.0,88340.0,0.01149472]
[1766273841317,0.02456851,88356.0,88340.0,0.01149472]
[1766273841512,0.02456851,88355.0,88340.0,0.01149472]
[1766273841711,0.02456851,88354.0,88340.0,0.18708399]
[1766273841912,0.02456851,88353.0,88340.0,0.18708399]
[1766273842111,0.02832,88357.0,88340.0,0.18708399]
[1766273842316,0.02456804,88356.0,88340.0,0.18708399]
[1766273842512,0.02456804,88355.0,88340.0,0.18708399]
[1766273842718,0.02456804,88354.0,88340.0,0.18708399]
[1766273842919,0.02456804,88353.0,88340.0,0.17575909]
[1766273843222,0.02832,88357.0,88340.0,0.17575909]
[1766273843525,0.02456758,88356.0,88340.0,0.00016982]
[1766273843712,0.02456758,88355.0,88340.0,0.00016982]
[1766273843914,0.02456758,88354.0,88340.0,0.00016982]
[1766273844116,0.02456758,88353.0,88340.0,0.00016982]
[1766273844315,0.02832,88357.0,88340.0,0.00016982]
[1766273844516,0.0245676,88356.0,88340.0,0.00016982]
[1766273844716,0.0245676,88355.0,88340.0,0.17575909]
[1766273845018,0.0245676,88354.0,88340.0,0.17575909]
[1766273845224,0.0245676,88353.0,88340.0,0.17575909]
[1766273845425,0.02832,88357.0,88340.0,0.17575909]
[1766273845628,0.02456736,88356.0,88340.0,0.17575909]
[1766273845825,0.02456736,88355.0,88341.0,0.0113248]
[1766273846019,0.02456736,88354.0,88341.0,0.0113248]
[1766273846330,0.02456736,88353.0,88341.0,0.0113248]
[1766273846523,0.02832,88357.0,88341.0,0.0113248]
[1766273846828,0.02456689,88356.0,88341.0,0.0113248]
[1766273847027,0.02456689,88355.0,88341.0,0.0113248]
[1766273847227,0.02456689,88354.0,88341.0,0.0113248]
[1766273847527,0.02456689,88353.0,88340.0,0.17575909]
[1766273847727,0.17558927,88360.0,88340.0,0.17575909]
[1766273848028,0.02456694,88359.0,88340.0,0.17575909]
[1766273848328,0.02456694,88358.0,88340.0,0.00016982]
[1766273848530,0.02456694,88357.0,88340.0,0.17575909]
[1766273848732,0.02456694,88356.0,88340.0,0.17575909]
[1766273848923,0.02456694,88355.0,88340.0,0.00016982]
[1766273849124,0.02456694,88354.0,88340.0,0.00016982]
[1766273849319,0.02456694,88353.0,88341.0,0.02832]
[1766273849519,0.0113225,88359.0,88341.0,0.02832]
[1766273849719,0.02456391,88358.0,88341.0,0.02832]
[1766273849928,0.02456391,88357.0,88341.0,0.02832]
[1766273850127,0.0113225,88359.0,88341.0,0.02832]
[1766273850128,0.02456391,88356.0,88341.0,0.02832]
[1766273850329,0.02456391,88355.0,88341.0,0.02832]
[1766273850527,0.02456391,88354.0,88341.0,0.02832]
[1766273850731,0.0113228,88357.0,88341.0,0.02832]
[1766273850931,0.02456438,88356.0,88341.0,0.02832]
[1766273851134,0.02456438,88355.0,88341.0,0.02832]
[1766273851333,0.02456438,88354.0,88341.0,0.02832]
[1766273851522,0.0113228,88357.0,88341.0,0.02832]
[1766273851820,0.02456456,88356.0,88341.0,0.02832]
[1766273852016,0.02456456,88355.0,88341.0,0.02832]
[1766273852221,0.02456456,88354.0,88341.0,0.02832]
[1766273852419,0.02456456,88353.0,88341.0,0.02832]
[1766273852622,0.0113231,88355.0,88341.0,0.02832]
[1766273852823,0.02456555,88354.0,88341.0,0.02832]
[1766273853121,0.02456555,88353.0,88341.0,0.02832]
[1766273853318,0.0113231,88355.0,88341.0,0.02832]
[1766273853522,0.02456801,88354.0,88341.0,0.02832]
[1766273853722,0.02456801,88353.0,88341.0,0.02832]
[1766273853922,0.0113231,88355.0,88341.0,0.02832]
[1766273854131,0.02460548,88354.0,88341.0,0.02832]
[1766273854332,0.02460548,88353.0,88341.0,0.02832]
[1766273854535,0.0113231,88355.0,88341.0,0.02832]
[1766273854734,0.02460582,88354.0,88341.0,0.02832]
[1766273854935,0.02460582,88353.0,88341.0,0.02832]
[1766273855138,0.0113231,88355.0,88341.0,0.02832]
[1766273855338,0.02460587,88354.0,88341.0,0.02832]
[1766273855537,0.02460587,88353.0,88341.0,0.02832]
[1766273855739,0.0113231,88355.0,88341.0,0.02832]
[1766273855938,0.02460627,88354.0,88341.0,0.02832]
[1766273856238,0.02460627,88353.0,88341.0,0.02832]
[1766273856438,0.0113231,88355.0,88341.0,0.02832]
[1766273856641,0.0246067,88354.0,88341.0,0.02832]
[1766273856834,0.0246067,88353.0,88342.0,0.02832]
[1766273857036,0.0113231,88355.0,88342.0,0.02832]
[1766273857238,0.02460668,88354.0,88342.0,0.02832]
[1766273857431,0.0246074,88353.0,88342.0,0.02832]
[1766273857638,0.0113231,88355.0,88342.0,0.02832]
[1766273857840,0.02460738,88354.0,88342.0,0.02832]
[1766273858136,0.0113231,88355.0,88342.0,0.02832]
[1766273858337,0.02460738,88354.0,88342.0,0.02832]
[1766273858536,0.0113231,88355.0,88342.0,0.02832]
[1766273858740,0.0246078,88354.0,88343.0,0.01924]
[1766273858940,0.0113231,88355.0,88343.0,0.01924]
[1766273859142,0.0246078,88354.0,88343.0,0.01924]
[1766273859440,0.02460825,88353.0,88343.0,0.01924]
[1766273859740,0.0113231,88355.0,88340.0,0.00016982]
[1766273859937,0.02460825,88354.0,88343.0,0.02832]
[1766273860139,0.02460825,88353.0,88343.0,0.02832]
[1766273860443,0.0113226,88359.0,88343.0,0.02832]
[1766273860632,0.02460829,88358.0,88343.0,0.02832]
[1766273860831,0.02460829,88357.0,88343.0,0.02832]
[1766273861032,0.02460829,88356.0,88343.0,0.0156]
[1766273861232,0.02460829,88355.0,88343.0,0.0156]
[1766273861440,0.02460829,88354.0,88343.0,0.0156]
[1766273861639,0.02460829,88353.0,88343.0,0.0156]
[1766273861942,0.0113226,88359.0,88343.0,0.0156]
[1766273862140,0.02460807,88358.0,88343.0,0.0156]
[1766273862330,0.02460807,88357.0,88343.0,0.0156]
[1766273862531,0.02460807,88356.0,88343.0,0.0156]
[1766273862732,0.02460807,88355.0,88343.0,0.0156]
[1766273862933,0.02460807,88354.0,88343.0,0.0156]
[1766273863239,0.02460807,88353.0,88343.0,0.0156]
[1766273863441,0.0113226,88359.0,88343.0,0.0156]
[1766273863632,0.02460822,88358.0,88343.0,0.0156]
[1766273863834,0.02460822,88357.0,88343.0,0.0156]
[1766273864035,0.02460822,88356.0,88343.0,0.0156]
[1766273864236,0.02460822,88355.0,88343.0,0.0156]
[1766273864535,0.02460822,88354.0,88343.0,0.0156]
[1766273864735,0.02460822,88353.0,88343.0,0.0156]
[1766273864941,0.0113226,88359.0,88343.0,0.0156]
[1766273865133,0.02460832,88358.0,88343.0,0.0156]
[1766273865331,0.02460832,88357.0,88343.0,0.0156]
[1766273865541,0.02460832,88356.0,88343.0,0.0156]
[1766273865743,0.02460832,88355.0,88343.0,0.0156]
[1766273865936,0.02460832,88354.0,88343.0,0.0156]
[1766273866137,0.02460832,88353.0,88343.0,0.0156]
[1766273866338,0.0113226,88359.0,88343.0,0.0156]
[1766273866532,0.02460861,88358.0,88343.0,0.0156]
[1766273866732,0.02460861,88357.0,88343.0,0.0156]
[1766273866937,0.02460861,88356.0,88343.0,0.0156]
[1766273867138,0.02460861,88355.0,88343.0,0.0156]
[1766273867339,0.02460861,88354.0,88343.0,0.0156]
[1766273867540,0.02460861,88353.0,88343.0,0.0156]
[1766273867740,0.02460861,88352.0,88343.0,0.0156]
[1766273868042,0.0113229,88356.0,88343.0,0.0156]
[1766273868242,0.02460849,88355.0,88343.0,0.0156]
[1766273868442,0.02460849,88354.0,88343.0,0.0156]
[1766273868630,0.02460849,88353.0,88343.0,0.0156]
[1766273868834,0.02460849,88352.0,88343.0,0.0156]
[1766273869046,0.0113229,88356.0,88343.0,0.0156]
[1766273869342,0.02460856,88355.0,88343.0,0.0156]
[1766273869544,0.02460856,88354.0,88343.0,0.0156]
[1766273869845,0.02460856,88353.0,88343.0,0.0156]
[1766273870040,0.02460856,88352.0,88343.0,0.0156]
[1766273870242,0.0113229,88356.0,88343.0,0.0156]
[1766273870444,0.02460936,88355.0,88343.0,0.0156]
[1766273870644,0.02460936,88354.0,88343.0,0.0156]
[1766273870842,0.02460936,88353.0,88343.0,0.0156]
[1766273871042,0.02460936,88352.0,88343.0,0.0156]
[1766273871244,0.0113229,88356.0,88343.0,0.0156]
[1766273871544,0.02460954,88355.0,88343.0,0.0156]
[1766273871842,0.02460954,88354.0,88343.0,0.0156]
[1766273872042,0.02460954,88353.0,88343.0,0.0156]
[1766273872247,0.02460954,88352.0,88343.0,0.0156]
[1766273872437,0.0113229,88356.0,88343.0,0.0156]
[1766273872637,0.02460974,88355.0,88343.0,0.0156]
[1766273872837,0.02460974,88354.0,88343.0,0.0156]
[1766273873139,0.02460974,88353.0,88343.0,0.0156]
[1766273873337,0.02460974,88352.0,88343.0,0.0156]
[1766273873637,0.0113225,88359.0,88343.0,0.0156]
[1766273873837,0.02460985,88358.0,88343.0,0.0156]
[1766273874144,0.02460985,88357.0,88343.0,0.0156]
[1766273874346,0.02460985,88356.0,88343.0,0.0156]
[1766273874645,0.02460985,88355.0,88343.0,0.0156]
[1766273874847,0.02460985,88354.0,88343.0,0.0156]
[1766273875042,0.02460985,88353.0,88343.0,0.0156]
[1766273875243,0.02460942,88352.0,88343.0,0.0156]
[1766273875446,0.02832,88362.0,88343.0,0.0156]
[1766273875644,0.02460942,88361.0,88343.0,0.0156]
[1766273875845,0.02460942,88360.0,88343.0,0.0156]
[1766273876146,0.02460942,88359.0,88343.0,0.0156]
[1766273876342,0.02460942,88358.0,88343.0,0.0156]
[1766273876542,0.02460942,88357.0,88343.0,0.0156]
[1766273876734,0.02460942,88356.0,88343.0,0.0156]